bitfinex/quotes_ETHUSD_20220311
["timestamp","ask_amount","ask_price","bid_price","bid_amount"]
[1646998692868,0.461,2639.4,2637.8,0.1894]
[1646998692869,0.23662125,2639.3,2637.8,0.1894]
[1646998693067,0.23662125,2639.3,2638.1,0.25]
[1646998693068,0.461,2639.2,2638.1,0.25]
[1646998693263,0.05261299,2639.1,2638.1,0.25]
[1646998693466,0.461,2639.0,2638.7,0.00302233]
[1646998693663,0.04686851,2638.8,2638.7,0.00302233]
[1646998693864,1.61626851,2638.8,2638.7,0.00302233]
[1646998694288,1.91626851,2638.8,2637.5,0.26489125]
[1646998694470,3.5440587,2638.7,2637.5,0.26489125]
[1646998694665,18.4835587,2638.7,2638.6,3.428e-05]
[1646998694866,0.00076572,2638.4,2637.4,1.34189045]
[1646998695109,0.461,2638.3,2637.4,1.34189045]
[1646998695314,0.04442204,2638.2,2637.4,1.34189045]
[1646998695516,0.461,2638.1,2637.5,1.89514]
[1646998695724,0.461,2638.1,2637.5,0.94757]
[1646998695913,0.461,2638.1,2637.9,1.06433687]
[1646998696115,0.461,2638.1,2637.6,1.89478]
[1646998696517,0.05264768,2638.0,2637.6,1.89478]
[1646998696714,0.05264768,2638.0,2637.4,0.4395]
[1646998696715,0.461,2638.0,2637.4,0.4395]
[1646998696916,0.04395567,2637.9,2637.7,0.00301476]
[1646998697114,0.05362605,2637.8,2637.7,0.00301476]
[1646998697717,0.511888,2637.8,2637.7,0.00301476]
[1646998697916,0.461,2637.8,2637.4,0.25]
[1646998698117,0.461,2637.8,2637.6,0.00301487]
[1646998698971,0.461,2637.8,2637.6,1.487e-05]
[1646998699173,0.461,2637.8,2636.8,3.17009997]
[1646998699174,0.04322334,2637.7,2636.8,0.57769997]
[1646998699373,0.04322334,2637.7,2637.2,0.01694421]
[1646998699374,0.461,2637.6,2637.2,0.01694421]
[1646998699573,0.05129676,2637.5,2637.2,0.01694421]
[1646998699776,0.461,2637.4,2637.2,0.01694421]
[1646998699971,4.0,2637.3,2636.3,2.08516]
[1646998700274,0.0001,2637.3,2636.7,0.07298722]
[1646998700478,1.0319718,2638.0,2636.6,0.94783]
[1646998700479,3.54580492,2637.9,2636.6,0.94783]
[1646998700770,3.54580492,2637.9,2636.4,3.28678037]
[1646998700771,20.0,2637.0,2636.5,0.1895]
[1646998700975,20.0,2637.0,2636.4,0.25]
[1646998700976,0.04810339,2636.9,2636.4,0.25]
[1646998701170,0.461,2636.9,2636.4,0.25]
[1646998701773,20.0,2637.0,2636.4,0.6351]
[1646998701975,20.0,2637.0,2636.5,0.27469095]
[1646998702175,20.0,2637.0,2636.5,0.08519095]
[1646998702615,20.0,2637.0,2636.7,0.86787359]
[1646998703015,20.0,2637.0,2636.6,0.95223602]
[1646998703215,20.0,2637.0,2636.7,0.94787]
[1646998703419,20.0,2637.0,2636.8,1.89567]
[1646998704020,17.19857005,2637.0,2636.8,1.89567]
[1646998704322,8.94886005,2637.0,2636.9,2.02809905]
[1646998704719,8.94886005,2637.0,2636.9,0.98576905]
[1646998706135,8.94886005,2637.0,2636.9,1.17526905]
[1646998706754,8.94886005,2637.0,2636.9,2.67526905]
[1646998706956,8.94886005,2637.0,2636.9,1.17526905]
[1646998707360,8.94886005,2637.0,2636.9,0.99026966]
[1646998708763,8.94886005,2637.0,2636.9,0.00450061]
[1646998709367,9.4557859,2637.0,2636.9,0.00450061]
[1646998709562,9.40986005,2637.0,2636.9,0.00450061]
[1646998709963,9.43214412,2637.0,2636.9,0.00450061]
[1646998710211,8.71634412,2637.0,2636.9,0.00450061]
[1646998710417,3.44184412,2637.0,2636.9,0.00450061]
[1646998711014,359.99549939,2636.9,2636.8,0.95221807]
[1646998711214,359.99549939,2636.9,2636.8,1.25221807]
[1646998711420,359.99549939,2636.9,2636.8,1.24782]
[1646998711620,359.99549939,2636.9,2636.8,1.25208612]
[1646998712617,359.99549939,2636.9,2636.8,1.24782]
[1646998714661,359.99549939,2636.9,2636.8,1.63292]
[1646998714861,359.75019939,2636.9,2636.8,5.13292]
[1646998715064,345.92540939,2636.9,2636.8,5.13292]
[1646998715360,339.81713939,2636.9,2636.8,2.63253483]
[1646998715561,333.93181939,2636.9,2636.8,3.63253483]
[1646998715762,324.66351043,2636.9,2636.8,3.63253483]
[1646998715961,324.66351043,2636.9,2636.7,0.3851]
[1646998716161,318.97854043,2636.9,2636.7,0.9693603]
[1646998716362,318.97854043,2636.9,2636.8,1.3851]
[1646998716761,313.29374043,2636.9,2636.8,1.3851]
[1646998717164,313.29374043,2636.9,2636.8,1.33292]
[1646998717363,313.29374043,2636.9,2636.8,1.63292]
[1646998717617,313.22744043,2636.9,2636.8,3.0]
[1646998717806,307.54289043,2636.9,2636.8,3.0]
[1646998718005,301.85827043,2636.9,2636.8,1.0]
[1646998718410,301.85827043,2636.9,2636.8,1.94782]
[1646998719214,301.83617043,2636.9,2636.8,2.24782]
[1646998719412,301.34997043,2636.9,2636.8,2.24782]
[1646998719613,301.34997043,2636.9,2636.8,2.33292]
[1646998719812,300.97496837,2636.9,2636.8,2.63292]
[1646998720015,299.66521084,2636.9,2636.8,5.93292]
[1646998720211,297.96573441,2636.9,2636.8,6.93292]
[1646998720414,279.91428124,2636.9,2636.8,8.36101478]
[1646998720620,227.85573259,2636.9,2636.8,11.86101478]
[1646998720822,227.85573259,2636.9,2636.8,23.12419478]
[1646998720823,183.91410259,2636.9,2636.8,23.12419478]
[1646998721012,168.92180259,2636.9,2636.8,7.87419478]
[1646998721219,157.55506259,2636.9,2636.8,4.11319478]
[1646998721467,157.44456259,2636.9,2636.8,4.11319478]
[1646998721663,157.42246259,2636.9,2636.8,3.11319478]
[1646998721870,157.42246259,2636.9,2636.8,1.6851]
[1646998722066,157.40036259,2636.9,2636.8,2.6851]
[1646998722265,157.40036259,2636.9,2636.4,3.25]
[1646998722266,4.0,2636.7,2636.4,3.25]
[1646998722468,157.40036259,2636.9,2635.8,4.04688029]
[1646998722469,8.5,2636.5,2635.8,4.04688029]
[1646998722667,12.0,2636.4,2635.9,7.5868]
[1646998722867,8.5,2636.4,2635.9,7.5868]
[1646998723065,8.5,2636.4,2635.9,8.5417]
[1646998723467,8.5,2636.4,2635.9,7.5868]
[1646998723667,8.5,2636.4,2635.9,2.0868]
[1646998723668,3.5,2636.3,2635.9,2.0868]
[1646998724068,3.5,2636.3,2635.6,0.25]
[1646998724373,3.5,2636.3,2634.8,0.31841031]
[1646998724374,0.01221849,2635.9,2634.8,0.31841031]
[1646998724570,0.01221849,2635.9,2634.7,0.3787]
[1646998724571,0.3851,2635.7,2634.7,0.3787]
[1646998724772,0.3851,2635.7,2634.5,0.08289571]
[1646998724773,4.40130812,2635.6,2634.5,0.08289571]
[1646998724971,4.40130812,2635.6,2633.9,10.40624223]
[1646998724972,0.04561177,2635.5,2634.3,0.08754673]
[1646998725238,0.461,2635.4,2633.9,1.0]
[1646998725440,0.461,2635.4,2634.0,0.08003599]
[1646998725441,3.8851,2635.3,2634.0,0.08003599]
[1646998725638,3.8851,2635.3,2634.2,0.94701539]
[1646998725639,0.461,2635.2,2634.2,0.94701539]
[1646998725839,0.04239361,2635.1,2634.2,0.94701539]
[1646998726038,0.04239361,2635.1,2634.7,0.0045801]
[1646998727046,0.04239361,2635.1,2634.2,0.94701539]
[1646998727243,0.04239361,2635.1,2634.8,0.00458003]
[1646998727445,0.04239361,2635.1,2635.0,0.93901882]
[1646998727645,5.1442928,2636.1,2635.0,0.93901882]
[1646998727646,2.2986,2636.1,2635.4,0.9153883]
[1646998727843,2.2986,2636.1,2634.9,1.3]
[1646998727844,0.461,2636.1,2634.9,1.3]
[1646998728242,0.04186233,2636.0,2635.0,0.08996305]
[1646998728444,0.3851,2636.3,2634.7,1.0]
[1646998728445,0.04269279,2636.2,2634.7,1.0]
[1646998728644,0.461,2636.1,2635.4,7.928e-05]
[1646998728862,0.05366458,2636.0,2635.4,7.928e-05]
[1646998729064,0.461,2635.9,2635.4,7.928e-05]
[1646998729264,0.461,2635.9,2634.6,0.25]
[1646998729265,8.5,2635.7,2634.6,0.25]
[1646998729462,8.5,2635.7,2633.6,2.93714168]
[1646998729463,4.02330017,2635.6,2633.8,0.5]
[1646998729667,0.06018786,2635.5,2633.8,0.501]
[1646998729864,0.06018786,2635.5,2633.9,0.07286884]
[1646998729865,0.461,2635.4,2633.9,0.07286884]
[1646998730071,0.06090789,2635.2,2633.9,0.07286884]
[1646998730268,0.98921527,2634.1,2633.8,6.884e-05]
[1646998730466,0.06701165,2634.7,2633.8,6.884e-05]
[1646998731066,0.06701165,2634.7,2633.8,0.0040374]
[1646998731267,0.06701165,2634.7,2633.8,0.00396856]
[1646998731468,0.08072776,2634.2,2633.8,0.00396856]
[1646998731871,0.07677435,2634.8,2634.2,0.00807277]
[1646998732709,0.07677435,2634.8,2634.2,7.277e-05]
[1646998732710,1.04844478,2634.8,2634.2,7.277e-05]
[1646998732910,3.5,2634.7,2634.2,7.277e-05]
[1646998733109,0.065327,2634.6,2634.2,7.277e-05]
[1646998733509,0.065327,2634.6,2634.4,6.794e-05]
[1646998733914,8.5,2635.0,2634.4,6.794e-05]
[1646998733915,0.07696026,2634.9,2634.4,6.794e-05]
[1646998734114,0.07696026,2634.9,2634.6,0.99812033]
[1646998734515,8.5,2635.0,2634.6,0.99812033]
[1646998734714,0.02426087,2635.1,2634.6,1.38322033]
[1646998734921,0.02426087,2635.1,2634.8,0.04939712]
[1646998735114,0.02426087,2635.1,2634.8,3.04939712]
[1646998735313,0.02426087,2635.1,2634.9,0.63995542]
[1646998735514,0.00475909,2635.4,2635.0,1.0427474]
[1646998736559,0.8461,2636.4,2635.0,1.0427474]
[1646998736759,158.51507465,2636.9,2635.2,3.3851]
[1646998736760,157.37716465,2636.9,2635.2,3.3851]
[1646998736959,157.37716465,2636.9,2635.5,0.3851]
[1646998737158,0.06053409,2636.8,2635.6,3.5]
[1646998737357,0.06053409,2636.8,2635.9,0.75825]
[1646998737565,0.94556486,2636.6,2635.9,0.75825]
[1646998737761,0.94556486,2636.6,2635.7,0.3]
[1646998737960,0.0654076,2636.5,2635.7,0.3]
[1646998738161,0.0654076,2636.5,2635.5,0.06633479]
[1646998738362,0.00427582,2636.4,2635.2,2.0585]
[1646998738562,0.00427582,2636.4,2635.3,0.94801]
[1646998738963,0.00427582,2636.4,2635.4,1.08068398]
[1646998739164,0.0654076,2636.5,2635.8,0.80935433]
[1646998739365,158.59806465,2636.9,2635.8,0.80935433]
[1646998739565,0.00128274,2636.0,2635.8,0.80935433]
[1646998739764,0.00128274,2636.0,2635.7,0.3]
[1646998739964,0.00128274,2636.0,2635.6,0.75836]
[1646998740410,0.06135404,2636.8,2635.6,0.75836]
[1646998740611,0.00128274,2635.9,2635.6,0.75836]
[1646998740810,0.00128274,2635.9,2635.6,1.8666434]
[1646998741012,0.00128274,2635.9,2635.7,3.5]
[1646998741218,0.00128274,2635.9,2635.8,0.3851]
[1646998741412,0.00128274,2635.9,2635.8,3.20148]
[1646998741610,0.059696,2636.7,2636.1,0.75821]
[1646998742814,0.059696,2636.7,2636.1,1.14331]
[1646998743012,0.00427582,2636.5,2636.2,0.05382289]
[1646998743212,0.00427582,2636.5,2636.4,1.14325]
[1646998743414,0.00427582,2636.5,2636.4,0.75815]
[1646998744064,157.37716465,2636.9,2636.4,0.75815]
[1646998744065,157.37716465,2636.9,2636.5,0.05983551]
[1646998744465,157.37716465,2636.9,2636.5,1.96100551]
[1646998744466,0.00427582,2636.6,2636.5,1.96100551]
[1646998744765,0.00427582,2636.6,2636.5,2.96100551]
[1646998745165,157.37716465,2636.9,2636.5,2.96100551]
[1646998745368,0.85670743,2636.8,2636.5,2.57590551]
[1646998745567,0.85670743,2636.8,2636.4,0.3]
[1646998745568,0.08013089,2636.7,2636.4,0.3]
[1646998745967,0.00427582,2636.7,2636.4,0.75813]
[1646998746366,157.37716465,2636.9,2636.4,1.75813]
[1646998746768,0.00128744,2636.7,2636.5,0.05981085]
[1646998747171,0.00128744,2636.7,2636.6,1.0]
[1646998747613,157.37716465,2636.9,2636.5,1.04491085]
[1646998747812,157.37716465,2636.9,2636.7,0.3851]
[1646998747813,0.00427582,2636.8,2636.7,0.3851]
[1646998748015,0.00427582,2636.8,2636.7,0.73769146]
[1646998748414,0.00427582,2636.8,2636.7,0.05259146]
[1646998748614,0.00427582,2636.8,2636.7,1.0]
[1646998748815,158.26789796,2636.9,2636.7,1.7579]
[1646998749021,157.38144047,2636.9,2636.7,0.7579]
[1646998749418,157.38144047,2636.9,2636.8,3.8851]
[1646998749620,157.38144047,2636.9,2636.8,3.3851]
[1646998749820,157.38144047,2636.9,2636.8,1.3851]
[1646998750017,157.38144047,2636.9,2636.8,4.3851]
[1646998750018,157.37716465,2636.9,2636.8,4.3851]
[1646998750843,157.37716465,2636.9,2636.8,1.0]
[1646998751122,144.35357844,2636.9,2636.8,1.3]
[1646998751395,0.07508944,2638.2,2636.8,9.47861782]
[1646998751583,0.18131529,2639.4,2636.8,9.47861782]
[1646998751584,0.01708937,2639.1,2638.1,3.0]
[1646998751792,0.01708937,2639.1,2638.5,0.01225593]
[1646998751982,2.974077,2640.0,2639.0,0.01211053]
[1646998751983,0.151777,2640.0,2639.0,0.01211053]
[1646998752185,1.04188688,2639.9,2639.6,9.82e-05]
[1646998752582,0.05786808,2639.8,2639.0,1.02368745]
[1646998752783,0.0008,2639.3,2639.0,1.02368745]
[1646998752984,0.0008,2639.3,2638.0,0.21661534]
[1646998753188,8.0,2639.2,2638.6,1.0]
[1646998753383,1.13541806,2639.1,2638.6,1.0]
[1646998753585,1.10244058,2638.7,2638.5,0.3]
[1646998753782,0.06921432,2639.1,2638.6,1.6097489]
[1646998753988,0.06921432,2639.1,2638.7,1.94678]
[1646998754285,0.06921432,2639.1,2638.4,2.27227]
[1646998754286,3.0,2638.8,2638.4,2.27227]
[1646998754485,8.5,2639.0,2638.4,2.27227]
[1646998754486,3.0,2638.5,2638.4,2.27227]
[1646998754687,3.83238653,2638.5,2638.3,0.75768]
[1646998754898,0.06837411,2638.4,2638.3,0.75768]
[1646998755824,0.06837411,2638.4,2638.2,1.51528]
[1646998756320,0.06204312,2638.9,2638.2,1.51528]
[1646998756522,6.1433,2639.9,2638.2,1.51528]
[1646998756523,0.00335383,2639.2,2638.2,1.51528]
[1646998756717,0.00335383,2639.2,2638.8,1.0]
[1646998756920,0.00335383,2639.2,2638.9,0.85216]
[1646998757123,0.00335383,2639.2,2639.1,1.0]
[1646998757722,0.00096,2639.8,2639.2,1.70383]
[1646998757919,0.0655911,2639.8,2639.2,1.70383]
[1646998758120,0.0655911,2639.8,2639.3,0.85192]
[1646998758325,0.06435216,2640.0,2639.5,1.0]
[1646998758723,0.06435216,2640.0,2639.5,2.70363]
[1646998758724,1.14859679,2639.6,2639.5,2.70363]
[1646998759176,1.14859679,2639.6,2639.5,2.19853]
[1646998759375,0.07356612,2639.4,2639.3,2.55545]
[1646998759583,3.07356612,2639.4,2639.3,2.55545]
[1646998759778,0.07356612,2639.4,2639.3,2.55545]
[1646998759974,0.09089792,2639.4,2639.3,2.55545]
[1646998760576,3.09089792,2639.4,2639.3,2.55545]
[1646998760780,3.09089792,2639.4,2639.2,0.85207]
[1646998760985,0.0725588,2639.3,2638.9,1.70422]
[1646998761180,0.0725588,2639.3,2638.5,3.85159037]
[1646998761181,8.7042,2638.9,2638.5,0.25]
[1646998761378,8.7042,2638.9,2638.1,0.054172]
[1646998761379,1.13284854,2638.3,2638.0,4.07734]
[1646998761579,0.07798288,2638.5,2638.3,0.253]
[1646998761799,0.06272118,2638.7,2638.4,0.85223]
[1646998762080,0.00096,2639.1,2638.4,2.93992037]
[1646998762283,0.00096,2639.3,2638.6,1.70406]
[1646998762621,0.01860781,2639.4,2639.2,1.0]
[1646998762817,3.0,2639.3,2639.2,1.0]
[1646998763019,0.06844416,2639.2,2638.9,1.0]
[1646998763318,0.06844416,2639.2,2639.0,2.70417]
[1646998763521,3.0,2639.1,2639.0,2.70417]
[1646998763921,0.0173318,2639.1,2639.0,2.70417]
[1646998764120,0.08260243,2639.1,2639.0,2.70417]
[1646998764320,0.08260243,2639.1,2639.0,1.70417]
[1646998764522,8.3015,2639.0,2638.8,2e-05]
[1646998764723,8.3015,2639.0,2638.0,0.48493037]
[1646998764724,3.3851,2638.9,2638.0,0.48493037]
[1646998764922,0.07024394,2638.8,2638.1,3.5]
[1646998765121,3.0173318,2638.9,2638.1,3.5]
[1646998765122,0.0173318,2638.9,2638.3,0.85237]
[1646998765321,0.0173318,2638.9,2638.4,0.99902]
[1646998765322,0.08752743,2638.9,2638.4,0.99902]
[1646998765521,0.08752743,2638.9,2638.4,0.99274268]
[1646998765725,0.0173318,2638.9,2638.5,1.46615268]
[1646998765923,0.0173318,2638.9,2638.5,2.12108305]
[1646998766125,0.0173318,2638.9,2638.6,0.7574]
[1646998766375,0.0173318,2638.9,2638.7,0.99974268]
[1646998766567,0.08466241,2638.9,2638.7,0.99974268]
[1646998766768,3.0,2638.8,2638.7,4.268e-05]
[1646998766968,4.03825901,2638.8,2638.5,4.268e-05]
[1646998767166,0.07688484,2638.7,2638.2,0.9471]
[1646998767365,0.07688484,2638.7,2638.3,0.75765]
[1646998767565,0.07007423,2638.6,2638.3,0.75765]
[1646998767966,0.08740603,2638.6,2638.3,0.75765]
[1646998768365,0.08740603,2638.6,2638.3,0.95158037]
[1646998768866,0.08740603,2638.6,2638.3,0.75765]
[1646998769071,3.0,2638.4,2638.3,0.75765]
[1646998769669,0.08740603,2638.6,2638.3,1.70463]
[1646998769871,0.07233044,2638.5,2638.3,1.70463]
[1646998770312,0.06944114,2638.4,2638.3,1.70463]
[1646998770515,0.0173318,2638.6,2638.3,1.70463]
[1646998770724,0.0173318,2638.6,2638.4,0.19393037]
[1646998770916,0.0173318,2638.6,2638.4,2.08757037]
[1646998771120,0.0173318,2638.6,2638.5,0.99904268]
[1646998771423,0.0173318,2638.6,2638.4,3.19268268]
[1646998771615,0.0173318,2638.6,2638.4,1.29904268]
[1646998771816,0.0173318,2638.6,2638.4,0.4734544]
[1646998772717,0.02597038,2638.8,2638.5,2.0173476]
[1646998772917,0.02597038,2638.8,2638.6,2.65101]
[1646998773116,0.02597038,2638.8,2638.7,0.1894]
[1646998773318,0.02597038,2638.8,2638.6,3.95005268]
[1646998773878,3.0,2638.7,2638.6,1.89359]
[1646998774074,3.0,2638.7,2638.2,0.25]
[1646998774075,0.06241134,2638.6,2638.2,0.25]
[1646998774270,3.0,2638.3,2638.2,0.25]
[1646998774575,0.85870701,2638.8,2638.2,0.25]
[1646998774576,0.07113965,2638.5,2638.2,0.25]
[1646998774768,0.07113965,2638.5,2638.3,0.1895]
[1646998775569,3.0,2638.4,2638.3,0.99904268]
[1646998775975,3.0,2638.4,2638.2,3.20173]
[1646998776170,3.0,2638.4,2638.3,0.00480243]
[1646998776576,4.143,2638.7,2638.3,0.00480243]
[1646998776773,1.143,2638.7,2638.3,0.00480243]
[1646998776975,0.02597038,2638.8,2638.3,0.00480243]
[1646998777174,0.02597038,2638.8,2638.5,1.94594268]
[1646998777373,3.02597038,2638.8,2638.6,0.75755]
[1646998777627,3.92897201,2638.8,2638.6,0.75755]
[1646998778021,3.92897201,2638.8,2638.5,1.7203383]
[1646998778221,3.92897201,2638.8,2638.5,1.4203383]
[1646998778422,3.0,2638.6,2638.5,1.4203383]
[1646998779231,3.0,2638.6,2637.7,3.03513037]
[1646998779232,0.3851,2638.3,2637.7,3.03513037]
[1646998779429,8.5,2638.4,2637.2,1.0]
[1646998779430,0.3851,2637.7,2637.2,1.0]
[1646998779827,0.3851,2637.7,2636.9,0.4737929]
[1646998779828,0.47368385,2638.0,2637.6,2.665e-05]
[1646998780029,3.0,2637.7,2637.6,2.665e-05]
[1646998780234,6.461,2637.7,2637.6,2.665e-05]
[1646998780428,7.9505,2637.7,2637.6,2.665e-05]
[1646998780630,0.00077335,2637.5,2636.0,0.7659676]
[1646998780829,0.461,2637.4,2636.0,0.292]
[1646998781026,3.0,2636.6,2636.0,0.1896]
[1646998781666,9.9173,2636.8,2636.0,0.1896]
[1646998781667,3.0,2636.2,2636.0,0.1896]
[1646998781871,3.0,2636.2,2636.0,0.4739299]
[1646998782264,3.0,2636.5,2636.0,0.4739299]
[1646998782466,3.0,2636.5,2636.1,1.24772]
[1646998782665,1.1482,2636.7,2636.1,1.24772]
[1646998782666,3.0,2636.6,2636.1,1.24772]
[1646998783265,1.5333,2636.7,2636.1,0.75822]
[1646998783468,3.0,2636.5,2636.0,0.3]
[1646998783867,3.0,2636.5,2636.2,0.75822]
[1646998784075,3.0,2636.5,2636.3,0.1895]
[1646998784273,1.1482,2636.7,2636.2,0.75822]
[1646998784478,3.84639997,2637.3,2636.2,0.75822]
[1646998784479,3.7082,2637.3,2636.3,0.1895]
[1646998784675,3.7082,2637.3,2636.5,1.51599]
[1646998784872,3.0,2637.6,2636.7,0.3851]
[1646998785116,5.0754,2637.7,2636.8,0.94736]
[1646998785316,3.0,2637.3,2636.8,1.94736]
[1646998785515,0.87916408,2637.2,2636.8,2.24736]
[1646998785719,0.07648335,2637.1,2636.8,3.2367282]
[1646998785913,3.0,2637.0,2636.9,0.75786]
[1646998786614,0.07648335,2637.1,2636.9,0.75786]
[1646998787218,0.07881325,2637.4,2636.9,1.66320926]
[1646998787420,0.07881325,2637.4,2637.0,1.0]
[1646998787621,0.07881325,2637.4,2637.1,1.94727]
[1646998787919,0.07881325,2637.4,2637.2,0.75782]
[1646998789172,0.00077335,2637.5,2637.2,0.75782]
[1646998789371,0.07378291,2637.3,2637.2,0.75782]
[1646998789574,0.07378291,2637.3,2637.2,0.76234585]
[1646998790371,0.00077335,2637.5,2637.2,0.75782]
[1646998791172,2.95,2637.3,2637.2,0.75782]
[1646998791371,3.02379506,2637.3,2637.2,0.75782]
[1646998792371,0.00077335,2637.5,2637.2,0.75782]
[1646998793225,2.95,2637.4,2637.2,0.76227089]
[1646998793426,0.00077335,2637.5,2637.2,0.76227089]
[1646998793630,0.00077335,2637.5,2637.3,3.5]
[1646998793828,0.06149022,2638.1,2637.5,0.75769]
[1646998793829,2.95,2638.0,2637.5,0.75769]
[1646998794032,2.95,2638.0,2637.7,0.3851]
[1646998794332,0.05060653,2638.7,2637.9,0.3851]
[1646998794333,0.05156653,2638.7,2637.9,0.3851]
[1646998794535,2.95,2638.6,2637.9,4.8851]
[1646998794734,2.95,2638.0,2637.9,2.4203508]
[1646998794931,2.95,2638.0,2637.9,2.1779908]
[1646998795231,2.95,2638.0,2637.9,0.75764]
[1646998795631,3.94301352,2638.0,2637.9,0.75764]
[1646998795831,2.9543131,2638.1,2637.9,0.75764]
[1646998796029,3.01338182,2638.1,2637.9,0.75764]
[1646998796467,0.05495459,2638.0,2637.9,0.75764]
[1646998796667,2.95,2638.1,2637.9,0.75764]
[1646998796668,3.0186091,2638.1,2637.9,0.75764]
[1646998796871,0.05520056,2638.0,2637.9,0.75764]
[1646998797067,0.00520056,2638.0,2637.5,1.52013584]
[1646998797272,2.95,2637.6,2637.5,1.52013584]
[1646998797766,9.31810132,2637.9,2637.5,1.51568]
[1646998797767,1.14521565,2637.7,2637.5,1.51568]
[1646998797967,4.09521565,2637.7,2637.5,1.51568]
[1646998799172,4.09521565,2637.7,2637.5,0.0031646]
[1646998799373,0.0545188,2637.6,2637.5,0.0031646]
[1646998799972,0.0545188,2637.6,2637.0,2.27336]
[1646998800219,2.95,2637.5,2637.1,0.4736933]
[1646998800422,2.95,2637.5,2637.4,0.00459439]
[1646998800619,2.95,2637.5,2637.4,0.76247439]
[1646998800824,8.5,2637.4,2637.1,1.4210433]
[1646998801021,2.95,2637.6,2637.0,2.27336]
[1646998801219,2.95,2637.6,2637.2,0.19393037]
[1646998801419,0.04485056,2637.7,2637.3,0.94729]
[1646998801622,0.00096,2638.1,2637.4,0.75772]
[1646998801623,2.95,2638.1,2637.4,0.75772]
[1646998801921,0.0458642,2637.6,2637.5,1.3322833]
[1646998802120,0.0458642,2637.6,2637.5,1.52621367]
[1646998802323,0.0458642,2637.6,2637.5,1.82621367]
[1646998802620,6.42e-05,2637.6,2637.5,2.44111367]
[1646998802819,0.02280998,2638.0,2637.5,2.44111367]
[1646998803221,0.02280998,2638.0,2637.6,1.95164037]
[1646998803624,0.02280998,2638.0,2637.7,0.19393037]
[1646998804470,2.95,2637.8,2637.7,0.19393037]
[1646998804671,2.95,2637.8,2637.5,2.9361389]
[1646998804672,0.04647578,2637.7,2637.5,2.9361389]
[1646998804875,0.02280998,2638.0,2637.5,2.9361389]
[1646998805070,2.95,2637.6,2637.5,2.9361389]
[1646998805271,2.95,2637.6,2637.5,2.4625933]
[1646998806671,0.00433465,2637.7,2637.5,2.4625933]
[1646998806871,0.00433465,2637.7,2637.6,1.51558]
[1646998807476,3.00440922,2637.8,2637.5,2.7625933]
[1646998807715,0.05874388,2637.8,2637.5,2.4625933]
[1646998808018,2.95,2637.6,2637.5,2.4625933]
[1646998808214,0.05874388,2637.8,2637.5,2.4625933]
[1646998808415,3.9885395,2637.6,2637.5,2.4625933]
[1646998809622,1.5154,2637.5,2637.4,1.8946285]
[1646998809824,1.5154,2637.5,2636.9,2.4210124]
[1646998809825,1.56149714,2637.5,2636.9,2.4210124]
[1646998810130,1.56149714,2637.5,2637.3,0.00464881]
[1646998810131,0.89493408,2637.4,2637.3,0.00464881]
[1646998810326,3.84493408,2637.4,2637.3,0.00464881]
[1646998810524,3.84658711,2637.4,2637.3,0.00464881]
[1646998811125,3.84658711,2637.4,2636.9,0.7580036]
[1646998811126,3.84658711,2637.4,2636.9,1.0580036]
[1646998811377,0.04340393,2637.3,2637.2,0.0031444]
[1646998811570,2.99340393,2637.3,2637.2,0.0031444]
[1646998812171,2.99340393,2637.3,2636.7,1.52865006]
[1646998812372,2.95,2636.8,2636.6,0.6290588]
[1646998812577,2.95,2636.8,2636.7,0.01258006]
[1646998812776,2.99473072,2636.8,2636.7,0.01258006]
[1646998813174,3.83335111,2636.8,2636.7,0.01258006]
[1646998813374,3.78862039,2636.8,2636.7,0.01258006]
[1646998813675,0.0562942,2636.7,2636.6,1.1371688]
[1646998813875,0.0062942,2636.7,2636.6,1.14168791]
[1646998814080,2.95,2637.0,2636.6,1.14168791]
[1646998814378,2.95,2637.0,2636.9,0.3789771]
[1646998814777,2.95,2637.0,2636.8,1.51596]
[1646998815222,2.95,2637.0,2636.8,2.2739141]
[1646998815721,1.1814,2637.4,2636.8,2.2739141]
[1646998815923,2.9,2636.9,2636.8,2.2739141]
[1646998816122,2.9,2636.9,2636.8,2.27843302]
[1646998816323,2.9,2636.9,2636.8,3.43143302]
[1646998816523,1.1814,2637.4,2636.9,0.07010589]
[1646998816725,2.9,2637.1,2636.9,0.07010589]
[1646998817327,2.9,2637.1,2636.9,0.00322199]
[1646998818127,2.9,2637.1,2637.0,1.91097]
[1646998818528,2.9,2637.1,2637.0,3.57596874]
[1646998818729,2.9,2637.1,2637.0,0.07596874]
[1646998818985,2.9,2637.1,2637.0,7e-05]
[1646998819589,2.9,2637.1,2637.0,0.08185218]
[1646998820593,2.9,2637.1,2637.0,7e-05]
[1646998823516,2.95175848,2637.1,2637.0,7e-05]
[1646998823921,2.95200947,2637.1,2637.0,7e-05]
[1646998824119,2.9,2637.1,2637.0,7e-05]
[1646998825220,2.95323754,2637.1,2637.0,7e-05]
[1646998825423,0.05323754,2637.1,2637.0,7e-05]
[1646998825628,2.9,2637.7,2637.0,0.57910037]
[1646998825823,0.00431143,2637.6,2637.2,0.46221606]
[1646998826475,2.9,2637.3,2637.2,0.08329906]
[1646998826678,2.9,2637.3,2637.0,0.30007]
[1646998826679,2.9,2637.3,2637.0,7e-05]
[1646998826875,2.9,2637.1,2637.0,7e-05]
[1646998827775,2.9,2637.1,2637.0,0.01486195]
[1646998828376,2.9,2637.1,2637.0,0.77283195]
[1646998829179,2.9,2637.1,2637.0,0.01486195]
[1646998830624,7.5,2637.0,2636.9,0.00464449]
[1646998831025,8.41433664,2637.0,2636.9,0.00464449]
[1646998831222,8.41433664,2637.0,2636.9,4.449e-05]
[1646998831623,7.5,2637.0,2636.7,0.94842]
[1646998831824,2.9,2636.8,2636.7,0.0008]
[1646998832424,12.4702,2636.8,2636.7,0.0008]
[1646998832622,13.3946804,2636.8,2636.7,0.0008]
[1646998832825,2.9,2637.0,2636.7,0.19473037]
[1646998833027,2.9,2636.8,2636.7,0.19473037]
[1646998833223,2.9,2636.9,2636.7,0.0008]
[1646998833624,2.9,2636.9,2636.7,2.46435]
[1646998833884,2.9,2636.9,2636.7,3.60584037]